Workbook

Sheet Өнімдер тізімі
B2: Өнімдер тізімі
D4: ЭЛЕМЕНТ | E4: ДҮКЕН | F4: САНАТ | G4: МӨЛШЕРІ | H4: БІРЛІК | I4: БІРЛІК БАҒАСЫ | J4: ҚОРЫТЫНДЫ | K4: АҢҒАРТПА
C5: ="c" -> c | D5: Апельсин | E5: Өнімдер | F5: Өнімдер | G5: 2 | H5: фунт | I5: Т2.99 | J5: =IFERROR(Тізім[МӨЛШЕРІ]*Тізім[БІРЛІК БАҒАСЫ],"") -> Т5.98
C6: ="c" -> c | D6: Алма | E6: Жеміс бағы | F6: Өнімдер | G6: 3 | H6: фунт | I6: Т1.99 | J6: =IFERROR(Тізім[МӨЛШЕРІ]*Тізім[БІРЛІК БАҒАСЫ],"") -> Т5.97 | K6: Купон бар
C7: ="c" -> c | D7: Банан | E7: Өнімдер | F7: Өнімдер | G7: 1 | H7: байлам | I7: Т3.99 | J7: =IFERROR(Тізім[МӨЛШЕРІ]*Тізім[БІРЛІК БАҒАСЫ],"") -> Т3.99
C8: c | D8: Латук | E8: Базар | F8: Өнімдер | G8: 2 | H8: бас | I8: Т2.29 | J8: =IFERROR(Тізім[МӨЛШЕРІ]*Тізім[БІРЛІК БАҒАСЫ],"") -> Т4.58
C9: c | D9: Қызанақтар | E9: Базар | F9: Өнімдер | G9: 4 | H9: фунт | I9: Т3.49 | J9: =IFERROR(Тізім[МӨЛШЕРІ]*Тізім[БІРЛІК БАҒАСЫ],"") -> Т13.96
C10: c | D10: Кәді | E10: Базар | F10: Өнімдер | G10: 2 | H10: әрқайсысы | I10: Т1.50 | J10: =IFERROR(Тізім[МӨЛШЕРІ]*Тізім[БІРЛІК БАҒАСЫ],"") -> Т3.00
C11: c | D11: Балдыркөк | E11: Өнімдер | F11: Өнімдер | G11: 2 | H11: байлам | I11: Т1.99 | J11: =IFERROR(Тізім[МӨЛШЕРІ]*Тізім[БІРЛІК БАҒАСЫ],"") -> Т3.98
C12: c | D12: Қияр | E12: Базар | F12: Өнімдер | G12: 1 | H12: фунт | I12: Т2.29 | J12: =IFERROR(Тізім[МӨЛШЕРІ]*Тізім[БІРЛІК БАҒАСЫ],"") -> Т2.29
C13: c | D13: Саңырауқұлақтар | E13: Өнімдер | F13: Өнімдер | G13: 0.5 | H13: фунт | I13: Т2.25 | J13: =IFERROR(Тізім[МӨЛШЕРІ]*Тізім[БІРЛІК БАҒАСЫ],"") -> Т1.13 | K13: Үлкен портабелла
C14: c | D14: Сүт | E14: Үйге жеткізу | F14: Сүт тағамдары | G14: 2 | H14: гал | I14: Т3.99 | J14: =IFERROR(Тізім[МӨЛШЕРІ]*Тізім[БІРЛІК БАҒАСЫ],"") -> Т7.98
C15: c | D15: Ірімшік | E15: Үйге жеткізу | F15: Сүт тағамдары | G15: 1 | H15: фунт | I15: Т9.99 | J15: =IFERROR(Тізім[МӨЛШЕРІ]*Тізім[БІРЛІК БАҒАСЫ],"") -> Т9.99 | K15: Текше ірімшіктердің түрлері
C16: c | D16: Жұмыртқа | E16: Үйге жеткізу | F16: Сүт тағамдары | G16: 2 | H16: уыс | I16: Т3.50 | J16: =IFERROR(Тізім[МӨЛШЕРІ]*Тізім[БІРЛІК БАҒАСЫ],"") -> Т7.00
C17: c | D17: Үй ірімшігі | E17: Үйге жеткізу | F17: Сүт тағамдары | G17: 1 | H17: 16 унция | I17: Т3.89 | J17: =IFERROR(Тізім[МӨЛШЕРІ]*Тізім[БІРЛІК БАҒАСЫ],"") -> Т3.89
C18: c | D18: Қаймақ | E18: Үйге жеткізу | F18: Сүт тағамдары | G18: 1 | H18: 8 унция | I18: Т2.99 | J18: =IFERROR(Тізім[МӨЛШЕРІ]*Тізім[БІРЛІК БАҒАСЫ],"") -> Т2.99
C19: c | D19: Йогурт | E19: Өнімдер | F19: Сүт тағамдары | G19: 1 | H19: 16 унция | I19: Т4.99 | J19: =IFERROR(Тізім[МӨЛШЕРІ]*Тізім[БІРЛІК БАҒАСЫ],"") -> Т4.99 | K19: Грек, бал бар
C20: c | D20: Сиыр еті | E20: Базар | F20: Ет | G20: 10 | H20: фунт | I20: Т7.99 | J20: =IFERROR(Тізім[МӨЛШЕРІ]*Тізім[БІРЛІК БАҒАСЫ],"") -> Т79.90 | K20: Беконға оралған сүбелер
C21: c | D21: Жабайы албырт | E21: Балық базары | F21: Теңіз өнімдері | G21: 6 | H21: фунт | I21: Т8.99 | J21: =IFERROR(Тізім[МӨЛШЕРІ]*Тізім[БІРЛІК БАҒАСЫ],"") -> Т53.94
C22: c | D22: Аляскалық корольдық краб аяқтары | E22: Балық базары | F22: Теңіз өнімдері | G22: 5 | H22: фунт | I22: Т10.99 | J22: =IFERROR(Тізім[МӨЛШЕРІ]*Тізім[БІРЛІК БАҒАСЫ],"") -> Т54.95

Sheet есептеулер (hidden)
A1: *** Жасырын қалатын парақ ***
K3: =SUM(Тізім[ҚОРЫТЫНДЫ])-SUM(K6:K9) -> Т0.00 | L3: =ROUND(K3,0) -> Т0 | M3: БАСҚА ҚОРЫТЫНДЫ
L4: =ROUNDUP(SUM(Тізім[ҚОРЫТЫНДЫ]),0) -> Т271 | M4: ӨНІМДЕР ҚОРЫТЫНДЫСЫ
E6: =IFERROR(INDEX(Тізім[САНАТ],MATCH(,COUNTIF($E$5:E5,Тізім[САНАТ]),)),"") -> Өнімдер | F6: =SUMIFS(Тізім[ҚОРЫТЫНДЫ],Тізім[САНАТ],E6) -> 44.875 | G6: =F6+ROW()/1000000 -> 44.875006 | H6: =LARGE($G$6:$G$21,1) -> 108.890009 | I6: =MATCH(H6,$G$6:$G$21,0) -> 4 | J6: =INDEX($E$6:$E$21,$I6) -> Теңіз өнімдері | K6: =INDEX($F$6:$F$21,$I6) -> Т108.89 | L6: =ROUND(K6,0) -> Т109 | M6: =UPPER(J6) & " ҚОРЫТЫНДЫ" -> ТЕҢІЗ ӨНІМДЕРІ ҚОРЫТЫНДЫ
E7: =IFERROR(INDEX(Тізім[САНАТ],MATCH(,COUNTIF($E$5:E6,Тізім[САНАТ]),)),"") -> Сүт тағамдары | F7: =SUMIFS(Тізім[ҚОРЫТЫНДЫ],Тізім[САНАТ],E7) -> 36.84 | G7: =F7+ROW()/1000000 -> 36.840007 | H7: =LARGE($G$6:$G$21,2) -> 79.900008 | I7: =MATCH(H7,$G$6:$G$21,0) -> 3 | J7: =INDEX($E$6:$E$21,$I7) -> Ет | K7: =INDEX($F$6:$F$21,$I7) -> Т79.90 | L7: =ROUND(K7,0) -> Т80 | M7: =UPPER(J7) & " ҚОРЫТЫНДЫ" -> ЕТ ҚОРЫТЫНДЫ
E8: =IFERROR(INDEX(Тізім[САНАТ],MATCH(,COUNTIF($E$5:E7,Тізім[САНАТ]),)),"") -> Ет | F8: =SUMIFS(Тізім[ҚОРЫТЫНДЫ],Тізім[САНАТ],E8) -> 79.9 | G8: 79.900008 | H8: =LARGE($G$6:$G$21,3) -> 44.875006 | I8: =MATCH(H8,$G$6:$G$21,0) -> 1 | J8: =INDEX($E$6:$E$21,$I8) -> Өнімдер | K8: =INDEX($F$6:$F$21,$I8) -> Т44.88 | L8: =ROUND(K8,0) -> Т45 | M8: =UPPER(J8) & " ҚОРЫТЫНДЫ" -> ӨНІМДЕР ҚОРЫТЫНДЫ
E9: =IFERROR(INDEX(Тізім[САНАТ],MATCH(,COUNTIF($E$5:E8,Тізім[САНАТ]),)),"") -> Теңіз өнімдері | F9: =SUMIFS(Тізім[ҚОРЫТЫНДЫ],Тізім[САНАТ],E9) -> 108.89 | G9: 108.890009 | H9: =LARGE($G$6:$G$21,4) -> 36.840007 | I9: =MATCH(H9,$G$6:$G$21,0) -> 2 | J9: =INDEX($E$6:$E$21,$I9) -> Сүт тағамдары | K9: =INDEX($F$6:$F$21,$I9) -> Т36.84 | L9: =ROUND(K9,0) -> Т37 | M9: =UPPER(J9) & " ҚОРЫТЫНДЫ" -> СҮТ ТАҒАМДАРЫ ҚОРЫТЫНДЫ
E10: =IFERROR(INDEX(Тізім[САНАТ],MATCH(,COUNTIF($E$5:E9,Тізім[САНАТ]),)),"") ->  | F10: =SUMIFS(Тізім[САНАТ],Тізім[САНАТ],E10) -> 0 | G10: 1e-05
E11: =IFERROR(INDEX(Тізім[САНАТ],MATCH(,COUNTIF($E$5:E10,Тізім[САНАТ]),)),"") ->  | F11: =SUMIFS(Тізім[САНАТ],Тізім[САНАТ],E11) -> 0 | G11: 1.1e-05
E12: =IFERROR(INDEX(Тізім[САНАТ],MATCH(,COUNTIF($E$5:E11,Тізім[САНАТ]),)),"") ->  | F12: =SUMIFS(Тізім[САНАТ],Тізім[САНАТ],E12) -> 0 | G12: 1.2e-05
E13: =IFERROR(INDEX(Тізім[САНАТ],MATCH(,COUNTIF($E$5:E12,Тізім[САНАТ]),)),"") ->  | F13: =SUMIFS(Тізім[САНАТ],Тізім[САНАТ],E13) -> 0 | G13: 1.3e-05
E14: =IFERROR(INDEX(Тізім[САНАТ],MATCH(,COUNTIF($E$5:E13,Тізім[САНАТ]),)),"") ->  | F14: =SUMIFS(Тізім[САНАТ],Тізім[САНАТ],E14) -> 0 | G14: 1.4e-05
E15: =IFERROR(INDEX(Тізім[САНАТ],MATCH(,COUNTIF($E$5:E14,Тізім[САНАТ]),)),"") ->  | F15: =SUMIFS(Тізім[САНАТ],Тізім[САНАТ],E15) -> 0 | G15: 1.5e-05
E16: =IFERROR(INDEX(Тізім[САНАТ],MATCH(,COUNTIF($E$5:E15,Тізім[САНАТ]),)),"") ->  | F16: =SUMIFS(Тізім[САНАТ],Тізім[САНАТ],E16) -> 0 | G16: 1.6e-05
E17: =IFERROR(INDEX(Тізім[САНАТ],MATCH(,COUNTIF($E$5:E16,Тізім[САНАТ]),)),"") ->  | F17: =SUMIFS(Тізім[САНАТ],Тізім[САНАТ],E17) -> 0 | G17: 1.7e-05
E18: =IFERROR(INDEX(Тізім[САНАТ],MATCH(,COUNTIF($E$5:E17,Тізім[САНАТ]),)),"") ->  | F18: =SUMIFS(Тізім[САНАТ],Тізім[САНАТ],E18) -> 0 | G18: 1.8e-05
E19: =IFERROR(INDEX(Тізім[САНАТ],MATCH(,COUNTIF($E$5:E18,Тізім[САНАТ]),)),"") ->  | F19: =SUMIFS(Тізім[САНАТ],Тізім[САНАТ],E19) -> 0 | G19: 1.9e-05
E20: =IFERROR(INDEX(Тізім[САНАТ],MATCH(,COUNTIF($E$5:E19,Тізім[САНАТ]),)),"") ->  | F20: =SUMIFS(Тізім[САНАТ],Тізім[САНАТ],E20) -> 0 | G20: 2e-05
E21: =IFERROR(INDEX(Тізім[САНАТ],MATCH(,COUNTIF($E$5:E20,Тізім[САНАТ]),)),"") ->  | F21: =SUMIFS(Тізім[САНАТ],Тізім[САНАТ],E21) -> 0 | G21: 2.1e-05
